[Event "5th Sharjah Masters 2022"]
[Site "Sharjah"]
[Date "2022.05.24"]
[Round "4.39"]
[White "Saeed, Ishaq"]
[Black "Begmuratov, Khumoyun"]
[Result "0-1"]
[ECO "A49"]
[WhiteElo "2397"]
[BlackElo "2384"]
[Annotator "TA"]
[PlyCount "82"]
[EventDate "2022.05.21"]
[EventType "swiss"]
[EventCountry "UAE"]
[SourceTitle "playchess.com"]
[Source "ChessBase"]
[SourceQuality "1"]
[TimeControl "5400+30"]

{[%evp 12,82,15,15,21,7,4,13,17,8,6,-24,8,20,24,16,20,9,16,6,14,11,8,2,0,4,4,3,7,-7,-25,0,0,0,0,0,0,-43,0,0,-16,-16,14,-14,-18,-62,0,0,0,0,47,42,40,45,55,49,485,491,464,461,403,392,248,0,50,0,42,0,0,0,0,0,0]} 1. Nf3 {[%emt 0:05:48]} Nf6 {[%emt 0:00:16]} 2. g3 {[%emt 0:00:37]} g6 {[%emt 0:00:24]} 3. Bg2 {[%emt 0:00:11]} Bg7 {[%emt 0:00:10]} 4. O-O {[%emt 0:00:42]} d6 {[%emt 0:00:15]} 5. d4 {[%emt 0:00:27]} O-O {[%emt 0:00:10]} 6. a4 {[%emt 0:00:30]} a5 {[%emt 0:02:01]} 7. Nc3 {[%emt 0:00:21]} Bf5 {[%emt 0:03:39] A49: 1 d4 Nf6 2 Nf3 g6 3 g3: Anti-King's Indian systems.} 8. Nh4 {[%emt 0:03:53]} Bc8 {[%emt 0:01:29]} 9. e4 {[%emt 0:00:48] [#]} e5 $146 {[%emt 0:05:39]} ({Predecessor:} 9... c6 10. f4 e5 11. Nf3 exd4 12. Nxd4 Qb6 13. Kh1 Nxe4 14. Nxe4 Bxd4 15. Nxd6 f5 16. Nxc8 Rxc8 {½-½ (30) Fier,L (1905)-Araujo,A (2233) Curitiba 2018}) 10. dxe5 {[%emt 0:10:32]} dxe5 {[%emt 0:01:43]} 11. Bg5 {[%emt 0:00:12]} Qxd1 {[%emt 0:06:36]} 12. Rfxd1 {[%emt 0:00:20]} h6 {[%emt 0:00:15]} 13. Be3 {[%emt 0:01:10]} Na6 {[%emt 0:00:17][%cal Bb8a6,Ba6b4,Bb4a2][%mdl 32]} 14. Bf1 {[%emt 0:13:49]} Be6 {[%emt 0:04:18]} 15. f3 {[%emt 0:07:39]} Nb4 {[%emt 0:06:04]} 16. Rd2 {[%emt 0:00:10]} Rfd8 {[%emt 0:00:30] Threatens to win with ...Rxd2.} 17. Rad1 {[%emt 0:00:30]} Rxd2 {[%emt 0:00:30]} 18. Rxd2 {[%emt 0:00:30]} Bf8 {[%emt 0:00:39]} 19. Be2 {[%emt 0:06:21]} Ne8 {[%emt 0:00:30]} 20. Nb5 {[%emt 0:00:30]} Na2 {[%emt 0:00:30]} 21. f4 {[%emt 0:30:24] And now f5 would win.} c6 {[%emt 0:23:03]} 22. f5 {[%emt 0:01:00]} gxf5 {[%emt 0:04:09]} 23. exf5 {[%emt 0:00:09]} Bd5 {[%emt 0:01:13]} 24. c4 {[%emt 0:00:08]} Be4 {[%emt 0:09:49]} (24... Bb4 $5 {[%cal Rb4d2]} 25. Nc3 (25. cxd5 Bxd2 26. Bxd2 cxb5 $17) (25. Rxd5 cxd5 26. cxd5 Rc8 $15) 25... Nxc3 26. bxc3 Bxc3 27. cxd5 (27. Rc2 Bd4 $15) 27... Bxd2 28. Bxd2 cxd5 $11) 25. Nc3 {[%emt 0:02:09]} Nxc3 {[%emt 0:00:02]} 26. bxc3 {[%emt 0:00:07]} Nd6 {[%emt 0:00:16]} 27. g4 {[%emt 0:02:31]} (27. Bxh6 $5 Nxf5 28. Nxf5 Bxf5 29. Bxf8 Rxf8 30. h4 $11) 27... b5 {[%emt 0:02:13]} 28. c5 {[%emt 0:06:01]} Nc4 {[%emt 0:01:08]} (28... Nb7 $15 29. Nf3 bxa4 30. Nxe5 Nxc5) 29. Bxc4 $11 {[%emt 0:01:04]} bxc4 {[%emt 0:00:02]} 30. f6 {[%emt 0:00:10]} Bd5 {[%emt 0:06:07]} (30... Rb8 $11) 31. Rb2 $1 $14 {[%emt 0:00:38]} Re8 {[%emt 0:01:52]} 32. Rb7 {[%emt 0:03:58]} Kh7 {[%emt 0:00:10]} 33. Kf2 {[%emt 0:02:36]} Re6 $2 {[%emt 0:00:29][%mdl 8192]} ({Better is} 33... Rd8 $14) 34. Rxf7+ $18 {[%emt 0:00:34]} Kg8 {[%emt 0:00:03] [#]} 35. Rxf8+ {[%emt 0:00:21][%mdl 512]} Kxf8 {[%emt 0:00:02]} 36. Bxh6+ {[%emt 0:00:08][%mdl 4096] Endgame KRB-KBN} Kf7 {[%emt 0:00:22] [#]} 37. g5 {[%emt 0:00:20]} (37. Bg7 $1 $18) 37... Be4 $1 $14 {[%emt 0:00:10]} (37... Re8 $2 38. Ke3 Rh8 39. Nf5 $16) 38. Ke3 {[%emt 0:00:06]} (38. Kg3 $1 $14) 38... Bc2 {[%emt 0:00:26]} 39. Bg7 {[%emt 0:00:24][%cal Og5g6] aiming for g6+!} Re8 {[%emt 0:00:55] The position is equal.} 40. Nf3 {[%emt 0:00:39]} Bd3 {[%emt 0:01:37]} (40... Bxa4 $2 41. h4 e4 42. g6+ Kxg6 43. h5+ Kxh5 44. f7 $18) 41. h4 {[%emt 0:00:16] Black must now prevent h5.} Bg6 {[%emt 0:00:14][%mdl 32768] Weighted Error Value: White=0.25 (precise) /Black=0.31. Loss on time!?} 0-1

[Event "5th Sharjah Masters 2022"]
[Site "Sharjah"]
[Date "2022.05.24"]
[Round "4.40"]
[White "Injac, Teodora"]
[Black "Ammar, Sedrani"]
[Result "0-1"]
[ECO "E07"]
[WhiteElo "2384"]
[BlackElo "2255"]
[Annotator "TA"]
[PlyCount "86"]
[EventDate "2022.05.21"]
[EventType "swiss"]
[EventCountry "UAE"]
[SourceTitle "playchess.com"]
[Source "ChessBase"]
[SourceQuality "1"]
[TimeControl "5400+30"]

{[%evp 21,86,38,52,45,63,67,62,73,70,0,5,-33,-25,-134,-132,-122,-134,-253,-243,-241,-226,-308,-314,-337,-282,-283,-151,-267,-133,-154,-46,-67,11,10,125,95,71,0,0,0,0,0,0,-227,0,-229,-238,-364,-368,-364,-362,-635,-615,-775,-787,-857,-857,-854,-848,-943,-942,-889,-929,-906,-897,-843,-812]} 1. d4 {[%emt 0:00:05]} d5 {[%emt 0:00:06]} 2. c4 {[%emt 0:00:26]} e6 {[%emt 0:00:07]} 3. Nf3 {[%emt 0:00:41]} Nf6 {[%emt 0:00:07]} 4. g3 {[%emt 0:00:16]} Be7 {[%emt 0:00:28]} 5. Bg2 {[%emt 0:00:33]} O-O {[%emt 0:00:50]} 6. O-O {[%emt 0:00:15]} c6 {[%emt 0:00:04]} 7. Nc3 {[%emt 0:01:53]} Nbd7 {[%emt 0:00:59]} 8. Qd3 {[%emt 0:01:12]} b6 {[%emt 0:07:34]} 9. e4 {[%emt 0:00:34]} Ba6 {[%emt 0:00:20]} 10. b3 {[%emt 0:00:13][%cal Bb2b3,Bb3c4][%mdl 32]} Rc8 {[%emt 0:03:56]} 11. e5 {[%emt 0:07:48]} Ne8 {[%emt 0:02:03]} 12. a4 {[%emt 0:09:10] E07: Closed Catalan: Main Line (5 Nf3 0-0 6 0-0 Nbd7).} dxc4 {[%emt 0:10:26]} 13. bxc4 {[%emt 0:00:18]} Nc5 {[%emt 0:00:13][%cal Bd7c5,Bc5b7,Bb7a5,Ba5b3][%mdl 32]} 14. Qc2 {[%emt 0:06:18] White is slightly better.} Nb7 {[%emt 0:00:27]} 15. Ne4 {[%emt 0:06:48]} (15. Nd1 $1 $14) 15... Na5 $11 {[%emt 0:06:09] [#]} 16. Neg5 $146 {[%emt 0:13:07][%csl Gg5][%cal Rc2h7]} ({Predecessor:} 16. Ned2 c5 17. Bb2 cxd4 18. Nxd4 Nxc4 19. Rfd1 Ne3 20. Nc6 Nxc2 21. Nxd8 Rxd8 {0-1 (21) Batchis,P (1558)-Portugalera,R (1954) Bangkok 2021}) 16... g6 {[%emt 0:01:01]} 17. Qe4 {[%emt 0:20:46]} (17. Rb1 $11 {keeps the balance.}) 17... Bxc4 {[%emt 0:03:13]} 18. Qh4 {[%emt 0:02:53][%csl Gg5][%cal Rh4h7]} h5 {[%emt 0:00:23]} 19. Qf4 {[%emt 0:03:33]} (19. Re1 $17) 19... Bxf1 $19 {[%emt 0:12:04]} 20. Bxf1 {[%emt 0:00:16]} Nb3 {[%emt 0:00:09]} 21. Bc4 {[%emt 0:07:11]} Bxg5 {[%emt 0:06:09]} ({Worse is} 21... Nxa1 22. Nxe6 Qd7 23. Nxf8 Bxf8 24. e6 fxe6 25. Ne5 $11) 22. Nxg5 {[%emt 0:00:03]} Nxd4 {[%emt 0:02:30][%cal Od8g5]} (22... Nxa1 23. Nxe6 Qe7 24. Nxf8 Qxf8 25. e6 $17) 23. Ne4 {[%emt 0:02:11] [#]} b5 {[%emt 0:05:09]} (23... Qd5 $3 $19 {[%mdl 512]} 24. Bxd5 (24. Nf6+ $2 Nxf6 25. Bxd5 Ne2+ 26. Kf1 Nxf4 $19) 24... Ne2+ 25. Kf1 Nxf4) 24. Bf1 {[%emt 0:02:15]} (24. Be3 $17 bxc4 25. Bxd4) 24... Qd5 {[%emt 0:06:40]} (24... f5 $19 25. Ng5 b4) 25. Bb2 {[%emt 0:02:28] aiming for Bxd4.} Kg7 {[%emt 0:06:35]} ({Black should play} 25... f5 $17 26. Ng5 Nb3) 26. axb5 $15 {[%emt 0:12:17]} c5 {[%emt 0:02:42]} (26... cxb5 $15 27. Ba3 Nf5 $1 28. Bxf8+ Kxf8 29. Rxa7 Qd1) 27. Rxa7 $11 {[%emt 0:00:00] White wants to play b6.} Rb8 {[%emt 0:02:20]} (27... Ra8 $1 $11 28. b6 Rxa7 29. bxa7 Qb7) 28. Bc1 {[%emt 0:00:00] Hoping for Qh6+.} Kg8 {[%emt 0:00:43]} 29. Re7 {[%emt 0:00:00]} (29. Be3 $1 $16) 29... Qd8 $1 {[%emt 0:06:08]} (29... Nxb5 $2 30. Rxe8 $1 {[%mdl 512]} Qxe4 31. Rxf8+ Rxf8 32. Qxe4 $18) 30. Rxe8 {[%emt 0:00:00][%mdl 64] Decoy} Rxe8 {[%emt 0:00:01]} 31. Nf6+ {[%emt 0:00:00]} Kf8 {[%emt 0:00:01][%cal Od4f5]} 32. Ba3 $2 {[%emt 0:00:00] [#]} (32. Be3 $11 {and White is okay.}) 32... Rc8 $1 {[%emt 0:02:35]} 33. Ne4 $2 {[%emt 0:01:28]} (33. Qh6+ $11 Ke7 34. Qe3) (33. b6 Kg7) 33... Nf5 $19 {[%emt 0:01:13]} 34. Nxc5 {[%emt 0:00:50]} (34. Nd6 {keeps fighting.}) 34... Kg7 {[%emt 0:00:37]} 35. Ne4 {[%emt 0:00:26]} Ra8 {[%emt 0:01:35][%cal Bc8a8,Ba8a4,Ba4b4,Bb4b3][%mdl 32]} 36. Bb2 {[%emt 0:00:31]} (36. Qc1) 36... Ra4 {[%emt 0:01:19] Black is clearly winning.} 37. Qf3 {[%emt 0:01:08]} Qd5 {[%emt 0:00:41]} 38. Ng5 {[%emt 0:00:51]} Qd2 {[%emt 0:01:12][%csl LRb2,LRg5]} 39. Qb3 {[%emt 0:00:06]} Rb4 {[%emt 0:01:53]} 40. Bc3 {[%emt 0:00:01]} Qxf2+ {[%emt 0:00:30]} ({Inferior is} 40... Qxg5 41. Bxb4 Qg4 42. b6 $11) 41. Kxf2 {[%emt 0:00:05]} Rxb3 {[%emt 0:00:05]} 42. Ne4 {[%emt 0:00:58]} Rc8 {[%emt 0:00:43]} 43. Bd2 {[%emt 0:00:17]} Nd4 {[%emt 0:00:43] Weighted Error Value: White=0.76/Black=0.37} 0-1

[Event "5th Sharjah Masters 2022"]
[Site "Sharjah"]
[Date "2022.05.25"]
[Round "5.1"]
[White "Salem, A.R. Saleh"]
[Black "Gupta, Abhijeet"]
[Result "1/2-1/2"]
[ECO "E01"]
[WhiteElo "2690"]
[BlackElo "2606"]
[Annotator "TA"]
[PlyCount "52"]
[EventDate "2022.05.21"]
[EventType "swiss"]
[EventCountry "UAE"]
[SourceTitle "playchess.com"]
[Source "ChessBase"]
[SourceQuality "1"]
[TimeControl "5400+30"]

{[%evp 15,52,0,0,0,19,0,0,0,0,0,0,-7,6,0,11,4,16,15,6,-6,-1,-1,-18,-8,-3,-8,28,66,66,7,28,4,11,11,7,12,8,25,19]} 1. d4 {[%emt 0:05:29]} d5 {[%emt 0:00:08]} 2. c4 {[%emt 0:00:08]} c6 {[%emt 0:00:04]} 3. Nc3 {[%emt 0:00:16]} Nf6 {[%emt 0:00:05]} 4. Nf3 {[%emt 0:00:10]} e6 {[%emt 0:00:00]} 5. g3 {[%emt 0:00:17]} dxc4 {[%emt 0:01:18]} 6. Bg2 {[%emt 0:00:43]} Nbd7 {[%emt 0:00:05]} 7. a4 {[%emt 0:02:24]} Be7 {[%emt 0:02:32]} 8. O-O {[%emt 0:00:25]} O-O {[%emt 0:00:05]} 9. a5 {[%emt 0:00:02] E01: Catalan: Early deviations.} Nd5 {[%emt 0:00:24][%cal Bf6d5,Bd5b4,Bb4d3][%mdl 32]} 10. e4 {[%emt 0:00:28][%mdl 1024] White has compensation.} Nb4 {[%emt 0:03:43]} 11. Qe2 {[%emt 0:00:19] The position is equal.} e5 {[%emt 0:05:30]} 12. d5 {[%emt 0:24:03]} (12. Qxc4 exd4 13. Ne2 (13. Qxd4 Nc2 $17) (13. Nxd4 $2 Ne5 $19) 13... c5 $17) (12. dxe5 Nd3 $15) 12... Nd3 {[%emt 0:12:11]} 13. Be3 {[%emt 0:23:07][%cal Ob2b3] [#]} Nf6 $146 {[%emt 0:10:59][%cal Rc6d5]} ({Predecessor:} 13... Bb4 14. a6 Bxc3 15. bxc3 cxd5 16. exd5 b5 17. Rfb1 Nb6 18. Rxb5 Bd7 19. Rba5 Bf5 {1-0 (68) Gupta,A (2634)-Tate,A (2309) London 2016}) 14. Nd2 {[%emt 0:14:06]} cxd5 {[%emt 0:05:45]} 15. Nxd5 {[%emt 0:00:09]} Nxd5 {[%emt 0:11:55]} 16. exd5 {[%emt 0:00:12]} f5 {[%emt 0:06:59][%cal Bf7f5,Bf5f4][%mdl 32]} 17. d6 {[%emt 0:03:22]} Bxd6 {[%emt 0:02:31] Strongly threatening ...Be6.} (17... Qxd6 18. Nxc4 Qd8 19. Rfd1 $16) 18. Bd5+ {[%emt 0:01:38]} Kh8 {[%emt 0:00:05] And now ...Be7 would win.} 19. Nxc4 {[%emt 0:03:05]} e4 {[%emt 0:04:14]} 20. f3 {[%emt 0:06:19]} (20. a6 Rb8 $14) 20... f4 {[%emt 0:08:46]} (20... Bxg3 $5 {[%cal Rd8d5]} 21. fxe4 Nf4 22. Bxf4 Bxf4 23. Rxf4 Qg5+ 24. Qg4 Qxg4+ 25. Rxg4 fxg4 $11) 21. Bxe4 {[%emt 0:02:26]} fxe3 {[%emt 0:01:26]} 22. Nxd6 {[%emt 0:04:32]} ({Reject} 22. Qxd3 Bc5 23. Qe2 Bf5 $11) ({Better is} 22. Rfd1 $1 $14 Bc5 23. Rxd3) 22... Qxd6 {[%emt 0:03:00]} (22... Nf2 $5 {[%cal Rd8d6]} 23. Nxc8 (23. Nxb7 Qd4 $15) (23. Bxb7 $2 Bxb7 24. Nxb7 Qd5 $19) 23... Nxe4 24. fxe4 Rxf1+ 25. Rxf1 Rxc8 $14) 23. Rfd1 {[%emt 0:01:38]} Nf4 $1 {[%emt 0:06:39]} 24. Rxd6 {[%emt 0:00:02]} Nxe2+ {[%emt 0:00:28]} 25. Kf1 {[%emt 0:00:01]} Nxg3+ {[%emt 0:00:34]} 26. hxg3 {[%emt 0:00:03]} Bf5 {[%emt 0:00:51] Weighted Error Value: White=0.08 (flawless) /Black=0.04 (flawless)} 1/2-1/2

[Event "5th Sharjah Masters 2022"]
[Site "Sharjah"]
[Date "2022.05.25"]
[Round "5.2"]
[White "Deac, Bogdan-Daniel"]
[Black "Yilmaz, Mustafa"]
[Result "1/2-1/2"]
[ECO "E04"]
[WhiteElo "2671"]
[BlackElo "2631"]
[Annotator "TA"]
[PlyCount "47"]
[EventDate "2022.05.21"]
[EventType "swiss"]
[EventCountry "UAE"]
[SourceTitle "playchess.com"]
[Source "ChessBase"]
[SourceQuality "1"]
[TimeControl "5400+30"]

{[%evp 15,47,7,23,10,8,7,12,0,0,0,0,0,0,10,13,3,19,0,0,6,13,16,20,17,82,94,88,87,89,46,62,24,23,0]} 1. d4 {[%emt 0:00:02]} Nf6 {[%emt 0:00:05]} 2. c4 {[%emt 0:00:05]} e6 {[%emt 0:00:04]} 3. Nf3 {[%emt 0:00:05]} d5 {[%emt 0:00:06]} 4. g3 {[%emt 0:00:07]} dxc4 {[%emt 0:00:19]} 5. Bg2 {[%emt 0:00:08]} c5 {[%emt 0:00:05]} 6. O-O {[%emt 0:00:06]} Nc6 {[%emt 0:00:04]} 7. Qa4 {[%emt 0:00:05]} Bd7 {[%emt 0:00:25]} 8. Qxc4 {[%emt 0:00:07]} b5 {[%emt 0:00:19]} 9. Qc3 {[%emt 0:00:03] E04: Open Catalan: 5 Nf3.} b4 {[%emt 0:00:42]} 10. Qd3 {[%emt 0:00:27]} Rc8 {[%emt 0:00:55]} 11. Bf4 {[%emt 0:00:29] The position is equal.} cxd4 {[%emt 0:02:31]} 12. Nbd2 {[%emt 0:00:10][%cal Bb1d2,Bd2b3,Bb3d4][%mdl 32]} Nd5 {[%emt 0:01:35]} 13. Be5 {[%emt 0:00:11]} Nxe5 {[%emt 0:01:07]} 14. Nxe5 {[%emt 0:00:11]} Be7 {[%emt 0:00:52] [#]} 15. Rfc1 $146 {[%emt 0:01:20]} ({Predecessor:} 15. Bxd5 exd5 16. Ndf3 O-O 17. Nxd4 Bf6 18. Nxd7 Qxd7 19. e3 Rc4 20. Rad1 Rfc8 21. b3 {½-½ (30) Wojtaszek,R (2727)-Harikrishna,P (2743) Batumi 2018}) 15... O-O {[%emt 0:18:47]} 16. Nb3 {[%emt 0:00:17]} Bf6 {[%emt 0:07:47]} 17. Ng4 {[%emt 0:03:13]} Be7 {[%emt 0:06:44]} 18. Nxd4 {[%emt 0:26:23]} Qb6 {[%emt 0:06:43]} 19. Ne5 {[%emt 0:17:10]} Rxc1+ {[%emt 0:12:32]} (19... Qd6 $11 {remains equal.} 20. Nxd7 Qxd7) 20. Rxc1 $16 {[%emt 0:00:22]} Rc8 {[%emt 0:00:14]} 21. Rxc8+ {[%emt 0:10:52]} Bxc8 {[%emt 0:00:11]} 22. Bxd5 {[%emt 0:01:46] White is more active.} exd5 {[%emt 0:00:45] [#]} 23. Qf3 $1 {[%emt 0:04:40]} Be6 {[%emt 0:03:26]} 24. Nxe6 {[%emt 0:00:09] Weighted Error Value: White=0.11 (very precise) /Black=0.09 (flawless)} 1/2-1/2

[Event "5th Sharjah Masters 2022"]
[Site "Sharjah"]
[Date "2022.05.25"]
[Round "5.3"]
[White "Iskandarov, Misratdin"]
[Black "Abdusattorov, Nodirbek"]
[Result "0-1"]
[ECO "C78"]
[WhiteElo "2601"]
[BlackElo "2661"]
[Annotator "TA"]
[PlyCount "72"]
[EventDate "2022.05.21"]
[EventType "swiss"]
[EventCountry "UAE"]
[SourceTitle "playchess.com"]
[Source "ChessBase"]
[SourceQuality "1"]
[TimeControl "5400+30"]

{[%evp 11,72,18,22,0,0,0,1,0,0,-12,13,18,21,13,22,18,25,24,22,12,28,22,29,28,28,29,29,13,19,7,5,5,12,0,6,0,0,0,-16,-18,-18,-25,-16,-39,18,-43,-48,-49,30,-358,-358,-358,-358,-345,-345,-340,-331,-419,-422,-788,-782,-29992,-4147]} 1. e4 {[%emt 0:00:04]} e5 {[%emt 0:00:24]} 2. Nf3 {[%emt 0:00:08]} Nc6 {[%emt 0:00:15]} 3. Bb5 {[%emt 0:00:27]} a6 {[%emt 0:00:27]} 4. Ba4 {[%emt 0:00:10]} Nf6 {[%emt 0:00:09]} 5. O-O {[%emt 0:05:03]} Bc5 {[%emt 0:00:19]} 6. Bxc6 {[%emt 0:04:02]} dxc6 {[%emt 0:00:12] [#]} (6... bxc6 7. Nxe5 Nxe4 8. Qe2 $16 (8. Qf3 Ng5 $11)) 7. Qe1 $146 {[%emt 0:00:05] C78: Ruy Lopez: Archangelsk and Möller Defences.} ({Predecessor:} 7. d3 Nd7 8. Nc3 O-O 9. Be3 Bd6 10. Nd2 Nc5 11. Ne2 Ne6 12. a4 b6 13. Nc4 c5 14. Qe1 f6 {0-1 (51) Alekseenko,K (2702)-Tabatabaei,M (2623) Chess.com INT 2022}) 7... O-O {[%emt 0:02:01]} 8. d3 {[%emt 0:00:12]} Nd7 {[%emt 0:01:02]} 9. Be3 {[%emt 0:01:40] The position is equal.} Re8 {[%emt 0:03:27]} 10. Nbd2 {[%emt 0:01:00]} Bd6 {[%emt 0:05:02]} 11. Nc4 {[%emt 0:04:14]} Nf8 {[%emt 0:00:17]} 12. Qc3 {[%emt 0:00:44][%cal Rf3e5]} f6 {[%emt 0:09:36]} 13. a4 {[%emt 0:03:41]} Bg4 {[%emt 0:04:56]} 14. Nfd2 {[%emt 0:01:29][%cal Bf3d2,Bd2c4,Bc4e3,Be3f5,Bf5g3][%mdl 32]} Ne6 {[%emt 0:00:30]} 15. a5 {[%emt 0:01:24]} Kh8 {[%emt 0:09:06]} 16. Qb3 {[%emt 0:04:26]} Qd7 {[%emt 0:01:19]} 17. Nxd6 {[%emt 0:01:47]} ({Avoid the trap} 17. Qxb7 $2 Reb8 18. Nb6 Qe8 $1 19. Qxa8 Rxa8 20. Nxa8 Qxa8 $19) 17... cxd6 {[%emt 0:00:16]} 18. Nc4 {[%emt 0:00:57]} Qe7 {[%emt 0:03:52]} 19. Ra4 {[%emt 0:06:13]} Rac8 {[%emt 0:02:00]} 20. Qa3 {[%emt 0:08:59]} Rcd8 {[%emt 0:01:11]} 21. Bb6 {[%emt 0:05:28]} Rd7 {[%emt 0:00:13]} 22. Ne3 {[%emt 0:00:09]} Bh5 {[%emt 0:00:19]} 23. Re1 {[%emt 0:03:57]} Nf4 {[%emt 0:03:21]} 24. Nf5 {[%emt 0:02:34]} Qe6 {[%emt 0:00:05][%cal Oh5f3] Hoping for ...Bf3!} 25. Be3 {[%emt 0:00:41]} g5 {[%emt 0:00:42]} 26. Qa2 {[%emt 0:10:13]} d5 {[%emt 0:02:42]} 27. Ng3 {[%emt 0:01:04] aiming for Bxf4.} Bf3 {[%emt 0:05:54]} 28. gxf3 {[%emt 0:02:31]} (28. Bxf4 $11 gxf4 29. gxf3) 28... Qh3 $15 {[%emt 0:00:06][%csl Gf4][%cal Rh3g2]} 29. Bxf4 {[%emt 0:00:06]} gxf4 {[%emt 0:00:04] [#]} (29... g4 $1 $15 30. fxg4 (30. exd5 $2 {is a self mate.} gxf3 31. dxc6 Qg2#) 30... exf4) 30. exd5 $2 {[%emt 0:00:38][%mdl 8192] This costs White the game.} Rg8 $19 {[%emt 0:00:22][%mdl 64] Pin} 31. dxc6 {[%emt 0:25:08] [#]} fxg3 $1 {[%emt 0:00:06]} 32. Qxg8+ {[%emt 0:04:21]} (32. fxg3 {[#] leads to mate.} Rxg3+ $1 {[%mdl 512]} 33. hxg3 Qxg3+ 34. Kh1 Rg7 35. Rg4 Qxf3+ 36. Kh2 Rxg4) 32... Kxg8 {[%emt 0:00:02] The board is on fire.} 33. hxg3 {[%emt 0:00:10]} bxc6 {[%emt 0:00:03] And now ...Rg7 would win.} 34. Rb4 {[%emt 0:00:18]} Rd5 {[%emt 0:01:06]} 35. Rb6 {[%emt 0:01:53]} (35. Rg4+ $142 Kf8 36. b4) 35... Rxa5 {[%emt 0:00:20][%cal Oe5e4] ( -> ...e4!)} 36. Rxc6 {[%emt 0:01:10]} e4 {[%emt 0:00:13] Weighted Error Value: White=0.59/Black=0.09 (flawless)} 0-1

[Event "5th Sharjah Masters 2022"]
[Site "Sharjah"]
[Date "2022.05.25"]
[Round "5.4"]
[White "Martirosyan, Haik M."]
[Black "Chigaev, Maksim"]
[Result "1-0"]
[ECO "E73"]
[WhiteElo "2652"]
[BlackElo "2631"]
[Annotator "TA"]
[PlyCount "73"]
[EventDate "2022.05.21"]
[EventType "swiss"]
[EventCountry "UAE"]
[SourceTitle "playchess.com"]
[Source "ChessBase"]
[SourceQuality "1"]
[TimeControl "5400+30"]

{[%evp 11,73,44,41,24,45,23,22,19,25,16,19,28,36,36,58,56,59,53,81,82,79,75,176,171,298,279,306,295,358,353,356,260,291,271,363,339,341,370,369,363,456,421,526,515,657,643,1004,998,1000,995,974,966,1245,1238,1383,1365,1461,1481,1541,1585,1857,1887,1429,1270]} 1. d4 {[%emt 0:00:04]} Nf6 {[%emt 0:00:17]} 2. c4 {[%emt 0:00:11]} g6 {[%emt 0:00:13]} 3. Nc3 {[%emt 0:00:31]} Bg7 {[%emt 0:00:11]} 4. e4 {[%emt 0:00:19]} d6 {[%emt 0:00:08]} 5. Be2 {[%emt 0:00:42]} O-O {[%emt 0:00:22]} 6. Be3 {[%emt 0:00:21]} c6 {[%emt 0:00:56]} 7. h4 {[%emt 0:03:47] E73: King's Indian: Averbakh Variation without 6...c5.} h5 {[%emt 0:04:09]} 8. Qd2 $5 {[%emt 0:01:30][%mdl 4] An interesting side line.} a6 {[%emt 0:04:03]} 9. a4 {[%emt 0:04:36] The position is equal.} a5 {[%emt 0:08:38]} 10. f3 {[%emt 0:02:08] [#]} e5 $146 {[%emt 0:02:31]} ({Predecessor:} 10... Na6 11. Nh3 Nb4 12. Nf2 e5 13. O-O-O exd4 14. Bxd4 d5 15. cxd5 cxd5 16. exd5 Bd7 {0-1 (47) Papayan,O (2246)-Starozhilov,L (2318) Chess.com INT 2019}) 11. d5 {[%emt 0:01:21]} Na6 {[%emt 0:00:17]} 12. Nh3 {[%emt 0:10:23][%cal Bg1h3,Bh3f2,Bf2d3,Bd3e5][%mdl 32]} Bd7 {[%emt 0:09:09]} 13. Nf2 {[%emt 0:07:57]} cxd5 {[%emt 0:02:50]} 14. cxd5 {[%emt 0:02:23]} ({Much weaker is} 14. Nxd5 Nxd5 15. cxd5 f5 $11) 14... Rc8 {[%emt 0:00:08]} 15. Ra3 {[%emt 0:06:24] White now steadily converts the win.} Nb4 {[%emt 0:09:21]} 16. Nd3 {[%emt 0:03:51]} Rc4 {[%emt 0:16:29]} (16... Be8 $16) 17. Nxe5 $18 {[%emt 0:08:20]} Rc8 {[%emt 0:02:05]} (17... Rxe4 $142 18. fxe4 (18. Nxd7 Rxe3 19. Nxf8 Qxf8 $14) 18... dxe5) 18. Nc4 {[%emt 0:02:30]} Rxc4 {[%emt 0:14:01]} 19. Bxc4 {[%emt 0:00:05]} Nh7 {[%emt 0:00:18]} 20. Bb5 {[%emt 0:02:53]} Bc8 {[%emt 0:01:31]} 21. Kd1 {[%emt 0:02:46]} f5 {[%emt 0:00:29]} 22. Bh6 {[%emt 0:01:24]} fxe4 {[%emt 0:01:20]} 23. Bxg7 {[%emt 0:00:35]} ({But not} 23. fxe4 Qf6 24. Kc1 Qe5 $18) 23... Kxg7 {[%emt 0:00:17]} 24. Nxe4 {[%emt 0:01:19]} Bf5 {[%emt 0:00:02]} 25. Qd4+ {[%emt 0:02:11]} Kh6 {[%emt 0:00:01]} 26. Re3 {[%emt 0:01:47] White is clearly winning.} Qc7 {[%emt 0:00:24] [#] White must now prevent ...Qc2+.} 27. Rc3 {[%emt 0:00:56] Prevents Qc2+.} Qe7 {[%emt 0:00:03]} 28. Re1 {[%emt 0:01:49]} Qxh4 {[%emt 0:00:22]} 29. Qd2+ {[%emt 0:00:27]} g5 {[%emt 0:01:41]} 30. g3 {[%emt 0:00:34]} Qh3 {[%emt 0:00:04]} 31. Bf1 {[%emt 0:00:26]} Qh1 {[%emt 0:00:04]} 32. Bg2 {[%emt 0:00:44]} Qh2 {[%emt 0:00:04]} 33. Rh1 {[%emt 0:01:09]} Qxh1+ {[%emt 0:00:07]} 34. Bxh1 {[%emt 0:00:03]} Bxe4 {[%emt 0:00:01]} 35. fxe4 {[%emt 0:00:53]} Rf1+ {[%emt 0:00:04]} 36. Ke2 {[%emt 0:00:13]} Rxh1 {[%emt 0:00:06]} 37. Qd4 {[%emt 0:00:32] Weighted Error Value: White=0.09 (flawless) /Black=0.40} 1-0